bitfinex/quotes_BTCUSD_20260215
["timestamp","ask_amount","ask_price","bid_price","bid_amount"]
[1771178470509,0.64635159,68590.0,68574.0,0.1569719]
[1771178470798,0.07289737,68590.0,68574.0,0.1569719]
[1771178471577,0.15087725,68590.0,68573.0,0.02305338]
[1771178471804,0.07289882,68589.0,68573.0,0.02305338]
[1771178472031,0.07290075,68587.0,68574.0,0.1569719]
[1771178472243,0.09652912,68588.0,68570.0,0.0003321]
[1771178472454,0.02362989,68588.0,68570.0,0.0003321]
[1771178472631,0.07290701,68581.0,68570.0,0.0003321]
[1771178472829,0.02362989,68583.0,68570.0,0.0003321]
[1771178473043,0.02362989,68583.0,68579.0,0.0002]
[1771178473250,0.02362989,68583.0,68570.0,0.0003321]
[1771178473251,0.22377786,68587.0,68562.0,0.0002]
[1771178473252,0.15087725,68586.0,68562.0,0.0002]
[1771178473455,0.2808,68587.0,68565.0,0.15430462]
[1771178473654,0.2808,68587.0,68568.0,0.0235369]
[1771178473858,0.2808,68587.0,68572.0,0.0002]
[1771178474267,0.2708,68587.0,68572.0,0.0002]
[1771178474658,0.0729033,68584.0,68572.0,0.0002]
[1771178474861,0.503737,68587.0,68572.0,0.0002]
[1771178475101,0.18333325,68586.0,68572.0,0.0002]
[1771178475479,0.07290422,68584.0,68572.0,0.0002]
[1771178475948,0.18433325,68586.0,68572.0,0.0002]
[1771178476138,0.2708,68587.0,68573.0,0.15430462]
[1771178476399,0.0214,68590.0,68572.0,0.0002]
[1771178476400,0.0214,68590.0,68576.0,0.0235369]
[1771178476624,0.0214,68590.0,68577.0,0.15430462]
[1771178476852,0.0214,68590.0,68578.0,0.0235369]
[1771178477073,0.0214,68590.0,68581.0,0.15430462]
[1771178477338,0.00174967,68598.0,68582.0,0.0235369]
[1771178477537,0.0004,68601.0,68580.0,0.57345422]
[1771178477538,0.0004,68601.0,68586.0,0.0235369]
[1771178477657,0.0004,68601.0,68587.0,0.17784152]
[1771178477861,0.00174967,68605.0,68587.0,0.15430462]
[1771178478071,0.09336,68611.0,68591.0,0.0235369]
[1771178478072,0.00214967,68608.0,68591.0,0.0235369]
[1771178478269,0.00214967,68608.0,68589.0,0.57345422]
[1771178478270,0.00214967,68608.0,68594.0,0.13972757]
[1771178480303,0.0004,68608.0,68594.0,0.13972757]
[1771178480754,0.0004,68608.0,68594.0,0.17784152]
[1771178480953,0.0004,68608.0,68589.0,0.15430462]
[1771178481162,0.0004,68608.0,68589.0,0.17784152]
[1771178481363,0.0004,68608.0,68590.0,0.0235369]
[1771178481575,0.0004,68608.0,68587.0,0.07302842]
[1771178481576,0.0004,68608.0,68593.0,0.15430462]
[1771178481775,0.00174967,68607.0,68587.0,0.1544335]
[1771178482104,0.00174967,68607.0,68587.0,0.1779704]
[1771178482283,0.00174967,68607.0,68589.0,0.15430462]
[1771178482519,0.00174967,68607.0,68589.0,0.17784152]
[1771178482670,0.00174967,68607.0,68589.0,0.15430462]
[1771178482874,0.00174967,68607.0,68587.0,0.00012888]
[1771178482875,0.00174967,68607.0,68593.0,0.15430462]
[1771178483123,0.00174967,68607.0,68593.0,0.17784152]
[1771178483337,0.00174967,68607.0,68587.0,0.00012888]
[1771178483338,0.09617823,68605.0,68587.0,0.00012888]
[1771178483539,0.160036,68591.0,68578.0,0.31276]
[1771178483781,0.1619147,68591.0,68578.0,0.31276]
[1771178483984,0.0018787,68591.0,68578.0,0.31276]
[1771178485600,0.57345422,68590.0,68572.0,0.0002]
[1771178485805,0.0729018,68586.0,68572.0,0.0002]
[1771178486035,0.01329725,68584.0,68572.0,0.0002]
[1771178486245,0.02329725,68587.0,68572.0,0.0002]
[1771178486417,0.07290141,68586.0,68572.0,0.0002]
[1771178486629,0.02329725,68585.0,68572.0,0.0002]
[1771178487361,0.00012903,68591.0,68573.0,0.17784152]
[1771178487565,0.00174967,68589.0,68574.0,0.0235369]
[1771178487766,0.00174967,68589.0,68572.0,0.0002]
[1771178488118,0.00174967,68589.0,68572.0,0.15450462]
[1771178488326,0.00174967,68589.0,68574.0,0.15430462]
[1771178488547,0.00012903,68591.0,68576.0,0.17784152]
[1771178489312,0.00012903,68591.0,68577.0,0.17784152]
[1771178489734,0.00012903,68591.0,68577.0,0.15430462]
[1771178489951,0.00012903,68591.0,68579.0,0.15430462]
[1771178490167,0.0004,68601.0,68581.0,0.17784152]
[1771178490391,0.0004,68601.0,68581.0,0.17797055]
[1771178490921,0.0004,68601.0,68583.0,0.15430462]
[1771178491153,0.0004,68601.0,68586.0,0.0235369]
[1771178491344,0.0004,68601.0,68584.0,0.00145798]
[1771178491345,0.27072,68606.0,68592.0,0.15430462]
[1771178491550,0.11665725,68611.0,68592.0,0.15430462]
[1771178491551,0.08376,68611.0,68592.0,0.15430462]
[1771178491753,0.0004,68615.0,68593.0,0.0235369]
[1771178491967,0.0004,68615.0,68590.0,0.57345422]
[1771178491968,0.0004,68615.0,68597.0,0.0235369]
[1771178492173,0.0004,68615.0,68598.0,0.17784152]
[1771178492515,0.0004,68615.0,68598.0,0.0235369]
[1771178493127,0.02369725,68615.0,68598.0,0.0235369]
[1771178493329,0.02369725,68615.0,68599.0,0.15430462]
[1771178493330,0.0004,68615.0,68599.0,0.15430462]
[1771178493531,0.0004,68615.0,68599.0,0.17784152]
[1771178493953,0.0004,68615.0,68590.0,0.57345422]
[1771178494111,0.18333325,68613.0,68591.0,0.40488]
[1771178494317,0.02329725,68613.0,68593.0,0.0235369]
[1771178494514,0.02329725,68613.0,68595.0,0.0235369]
[1771178494738,0.02329725,68613.0,68596.0,0.17784152]
[1771178498196,0.160036,68611.0,68589.0,0.17804152]
[1771178498414,0.02329725,68609.0,68597.0,0.31156]
[1771178498620,0.160036,68605.0,68589.0,0.0237369]
[1771178498865,0.02329725,68604.0,68589.0,0.3352969]
[1771178499580,0.57345422,68610.0,68589.0,0.3352969]
[1771178499581,0.02329725,68621.0,68594.0,0.29156954]
[1771178499799,0.02329725,68621.0,68592.0,0.20207347]
[1771178499800,0.160036,68620.0,68597.0,0.0235369]
[1771178500005,0.02329725,68617.0,68597.0,0.17784152]
[1771178500210,0.02329725,68617.0,68599.0,0.15430462]
[1771178500413,0.0004,68622.0,68602.0,0.0235369]
[1771178500613,0.0004,68622.0,68604.0,0.0235369]
[1771178500824,0.160436,68622.0,68604.0,0.0235369]
[1771178501020,0.160036,68621.0,68604.0,0.0235369]
[1771178501320,0.02329725,68620.0,68604.0,0.0235369]
[1771178501522,0.02329725,68620.0,68597.0,0.0728893]
[1771178501523,0.160036,68616.0,68597.0,0.0235369]
[1771178501728,0.18333325,68610.0,68596.0,0.31124]
[1771178501900,0.18333325,68610.0,68594.0,0.31124]
[1771178501901,0.02329725,68609.0,68594.0,0.31124]
[1771178502128,0.02329725,68609.0,68590.0,0.0235369]
[1771178502316,0.02329725,68609.0,68591.0,0.3112]
[1771178502317,0.160036,68609.0,68591.0,0.3112]
[1771178502485,0.02329725,68605.0,68591.0,0.3112]
[1771178502707,0.02329725,68605.0,68589.0,0.0002]
[1771178502708,0.160036,68597.0,68589.0,0.0002]
[1771178502903,0.02329725,68597.0,68589.0,0.0002]
[1771178504324,0.02446948,68604.0,68589.0,0.0002]
[1771178504526,0.07288633,68600.0,68589.0,0.0002]
[1771178504699,0.57456837,68600.0,68589.0,0.0002]
[1771178504904,0.07289194,68595.0,68589.0,0.0002]
[1771178505675,0.07289083,68596.0,68589.0,0.0002]
[1771178506078,0.02446948,68598.0,68589.0,0.0002]
[1771178506939,0.57456837,68610.0,68589.0,0.0002]
[1771178506940,0.0004,68622.0,68589.0,0.0002]
[1771178507123,0.0004,68622.0,68591.0,0.435536]
[1771178507247,0.00052908,68620.0,68599.0,0.02291264]
[1771178507461,0.00052908,68620.0,68603.0,0.02291264]
[1771178507661,0.00052908,68620.0,68600.0,0.57456837]
[1771178507662,0.00052908,68620.0,68604.0,0.1836776]
[1771178508330,0.15344246,68619.0,68595.0,0.131468]
[1771178508534,0.15344246,68619.0,68592.0,0.07289402]
[1771178508535,0.15344246,68619.0,68597.0,0.02291264]
[1771178508778,0.02499856,68620.0,68590.0,0.02291264]
[1771178508779,0.15344246,68614.0,68590.0,0.02291264]
[1771178508979,0.15344246,68612.0,68596.0,0.3106]
[1771178509596,0.22631707,68611.0,68596.0,0.3106]
[1771178509844,0.17791194,68611.0,68596.0,0.3106]
[1771178510659,0.17791194,68611.0,68596.0,0.3108]
[1771178510993,0.17791194,68610.0,68596.0,0.3108]
[1771178511206,0.07287886,68607.0,68596.0,0.0002]
[1771178511417,0.02446948,68604.0,68596.0,0.0002]
[1771178511617,0.17791194,68604.0,68596.0,0.0002]
[1771178512056,0.25079398,68604.0,68596.0,0.0002]
[1771178512384,0.25079398,68604.0,68582.0,0.16096496]
[1771178512385,0.02446948,68607.0,68582.0,0.0002]
[1771178512610,0.15344246,68597.0,68582.0,0.0002]
[1771178512782,0.64745491,68600.0,68582.0,0.0002]
[1771178512783,0.07289267,68594.0,68582.0,0.0002]
[1771178512940,0.15344246,68590.0,68575.0,0.0002]
[1771178513441,0.15344246,68606.0,68583.0,0.16076496]
[1771178513646,0.17791194,68606.0,68583.0,0.16076496]
[1771178513962,0.15344246,68605.0,68583.0,0.00012903]
[1771178514165,0.15344246,68605.0,68584.0,0.16076496]
[1771178515357,0.02446948,68606.0,68584.0,0.16076496]
[1771178515582,0.17791194,68605.0,68584.0,0.16076496]
[1771178515808,0.02446948,68604.0,68584.0,0.16076496]
[1771178515955,0.07288594,68601.0,68583.0,0.02304167]
[1771178516156,0.17791194,68600.0,68583.0,0.00012903]
[1771178517006,0.02446948,68600.0,68583.0,0.00012903]
[1771178517217,0.15344246,68590.0,68572.0,0.0002]
[1771178517435,0.02446948,68580.0,68572.0,0.0002]
[1771178518230,0.07291074,68577.0,68576.0,0.0002]
[1771178518430,0.17791194,68580.0,68572.0,0.0002]
[1771178518806,0.07290677,68581.0,68572.0,0.00063024]
[1771178519084,0.02446948,68583.0,68572.0,0.00063024]
[1771178519305,0.1534,68608.0,68572.0,0.00063024]
[1771178519428,0.07290399,68584.0,68572.0,0.00063024]
[1771178519635,0.02446948,68582.0,68572.0,0.00063024]
[1771178519854,0.07289264,68595.0,68572.0,0.1613952]
[1771178520081,0.07289546,68592.0,68572.0,0.1613952]
[1771178520332,0.02446948,68593.0,68572.0,0.18430784]
[1771178520531,0.02446948,68593.0,68573.0,0.02291264]
[1771178520733,0.07290237,68585.0,68572.0,0.00063024]
[1771178520938,0.31607871,68585.0,68572.0,0.00063024]
[1771178521259,0.15344246,68581.0,68572.0,0.00063024]
[1771178521722,0.17791194,68581.0,68572.0,0.00063024]
[1771178522371,0.07290792,68580.0,68572.0,0.00063024]
[1771178522757,0.07290974,68578.0,68572.0,0.00063024]
[1771178522914,0.15344246,68579.0,68572.0,0.00063024]
[1771178523316,0.02446948,68580.0,68572.0,0.00063024]
[1771178526227,0.43733116,68598.0,68572.0,0.00063024]
[1771178526445,0.35278257,68585.0,68572.0,0.00063024]
[1771178526636,0.27988,68585.0,68572.0,0.00063024]
[1771178526855,0.30434948,68585.0,68572.0,0.00063024]
[1771178527268,0.001,68590.0,68574.0,0.02291264]
[1771178527456,0.0934,68602.0,68574.0,0.02291264]
[1771178527457,0.0934,68602.0,68581.0,0.02291264]
[1771178527632,0.0934,68602.0,68580.0,0.57456837]
[1771178527633,0.0934,68602.0,68584.0,0.02291264]
[1771178527870,0.02446948,68608.0,68584.0,0.02291264]
[1771178528230,0.11356,68610.0,68591.0,0.02291264]
[1771178528402,0.0004,68613.0,68591.0,0.02291264]
[1771178528403,0.0004,68613.0,68591.0,0.00833326]
[1771178529200,0.0004,68613.0,68592.0,0.02129902]
[1771178529400,0.0004,68613.0,68593.0,0.16076496]
[1771178529606,0.0004,68613.0,68597.0,0.16076496]
[1771178529889,0.0004,68613.0,68599.0,0.16076496]
[1771178530437,0.0004,68613.0,68598.0,0.18206398]
[1771178530645,0.00052908,68613.0,68598.0,0.18206398]
[1771178531206,0.00052908,68613.0,68602.0,0.16076496]
[1771178531452,0.24344208,68622.0,68602.0,0.16076496]
[1771178531453,0.22979178,68622.0,68602.0,0.16076496]
[1771178531634,0.22979178,68622.0,68602.0,0.16089404]
[1771178532032,0.0004,68608.0,68604.0,0.18206398]
[1771178532261,0.2053223,68622.0,68604.0,0.16076496]
[1771178532440,0.2053223,68622.0,68606.0,0.18206398]
[1771178532642,0.0004,68615.0,68606.0,0.17206398]
[1771178532841,0.0004,68615.0,68602.0,0.00012908]
[1771178533214,0.0004,68615.0,68602.0,0.16089404]
[1771178533699,0.0004,68615.0,68602.0,0.00012908]
[1771178534085,0.02429063,68611.0,68602.0,0.00012908]
[1771178534325,0.02429063,68611.0,68580.0,0.57456837]
[1771178534326,0.15600154,68611.0,68583.0,0.15266006]
[1771178534530,0.02429063,68610.0,68583.0,0.07290333]
[1771178534733,0.07288002,68606.0,68584.0,0.15266006]
[1771178534943,0.02429063,68604.0,68584.0,0.15266006]
[1771178535372,0.15600154,68609.0,68585.0,0.15266006]
[1771178535553,0.000129,68611.0,68586.0,0.15266006]
[1771178535554,0.02429063,68610.0,68586.0,0.15266006]
[1771178535987,0.02429063,68610.0,68587.0,0.30784]
[1771178536195,0.02429063,68610.0,68588.0,0.15266006]
[1771178536659,0.000129,68611.0,68588.0,0.15266006]
[1771178536849,0.57456837,68600.0,68580.0,0.15266006]
[1771178537049,0.57456837,68600.0,68579.0,0.02161262]
[1771178537050,0.02429063,68598.0,68579.0,0.15297366]
[1771178537184,0.02429063,68607.0,68582.0,0.15266006]
[1771178537385,0.15600154,68606.0,68584.0,0.15266006]
[1771178537586,0.02429063,68603.0,68584.0,0.15266006]
[1771178537780,0.27896,68608.0,68579.0,0.0003136]
[1771178537981,0.02429063,68605.0,68580.0,0.15266006]
[1771178538182,0.15600154,68603.0,68580.0,0.15266006]
[1771178538391,0.02429063,68602.0,68580.0,0.15266006]
[1771178538788,0.15600154,68598.0,68579.0,0.0003136]
[1771178539000,0.15600154,68595.0,68579.0,0.0003136]
[1771178539296,0.27896,68608.0,68575.0,0.0002]
[1771178539297,0.02429063,68585.0,68575.0,0.0002]
[1771178539516,0.02429063,68584.0,68575.0,0.0002]
[1771178539750,0.15600154,68583.0,68575.0,0.0002]
[1771178539988,0.02429063,68584.0,68575.0,0.0002]
[1771178540445,0.02429063,68584.0,68577.0,0.0002]
[1771178541019,0.02429063,68593.0,68577.0,0.0002]
[1771178541232,0.18029217,68593.0,68577.0,0.0002]
[1771178541440,0.25318625,68593.0,68577.0,0.0002]
[1771178541661,0.02429063,68593.0,68578.0,0.15266006]
[1771178541864,0.02429063,68593.0,68577.0,0.0002]
[1771178542293,0.02429063,68593.0,68577.0,0.15286006]
[1771178543030,0.15600154,68599.0,68577.0,0.15286006]
[1771178543233,0.02429063,68598.0,68577.0,0.15286006]
[1771178543570,0.02429063,68597.0,68577.0,0.15286006]
[1771178544414,0.27908,68606.0,68579.0,0.15266006]
[1771178544617,0.27908,68606.0,68577.0,0.07311065]
[1771178544618,0.57456837,68590.0,68577.0,0.0002]
[1771178544905,0.57456837,68590.0,68575.0,0.0002]
[1771178544906,0.02429063,68583.0,68575.0,0.0002]
[1771178546101,0.15600154,68584.0,68575.0,0.0002]
[1771178546641,0.15600154,68584.0,68575.0,0.15286006]
[1771178547226,0.02429063,68591.0,68577.0,0.0002]
[1771178549566,0.57456837,68590.0,68577.0,0.0002]
[1771178549729,0.02429063,68586.0,68577.0,0.0002]
[1771178550402,0.18029217,68586.0,68577.0,0.0002]
[1771178551047,0.15600154,68586.0,68577.0,0.0002]
[1771178551253,0.02429063,68585.0,68577.0,0.0002]
[1771178551765,0.02429063,68585.0,68572.0,0.0002]
[1771178551766,0.02429063,68578.0,68572.0,0.0002]
[1771178551968,0.02429063,68578.0,68570.0,0.0002]
[1771178552142,0.02472061,68578.0,68570.0,0.0002]
[1771178552489,0.09763076,68578.0,68570.0,0.0002]
[1771178552914,0.02472061,68578.0,68570.0,0.0002]
[1771178553092,0.15600154,68577.0,68570.0,0.0002]
[1771178553291,0.18029217,68577.0,68570.0,0.0002]
[1771178553873,0.02429063,68576.0,68565.0,0.0002]
[1771178554918,0.18029217,68575.0,68570.0,0.0002]
[1771178555337,0.02429063,68572.0,68570.0,0.0002]
[1771178555510,0.02429063,68569.0,68563.0,0.0002]
[1771178555773,0.57456837,68571.0,68546.0,0.15266006]
[1771178555774,0.07292243,68566.0,68546.0,0.15266006]
[1771178555977,0.02429063,68565.0,68546.0,0.15266006]
[1771178556188,0.02429063,68564.0,68546.0,0.15266006]
[1771178556414,0.02429063,68564.0,68538.0,0.50733085]
[1771178556415,0.57456837,68571.0,68538.0,0.50733085]
[1771178556416,0.07293201,68558.0,68538.0,0.42969223]
[1771178556623,0.58331204,68574.0,68538.0,0.0001568]
[1771178556624,0.15600154,68549.0,68538.0,0.0001568]
[1771178556827,0.02429063,68547.0,68538.0,0.0001568]
[1771178557684,0.02429063,68556.0,68538.0,0.0001568]
[1771178557892,0.02429063,68553.0,68538.0,0.00028592]
[1771178558333,0.57456837,68550.0,68538.0,0.00028592]
[1771178558766,0.15600154,68551.0,68538.0,0.00028592]
[1771178558767,0.02429063,68549.0,68538.0,0.00028592]
[1771178560272,0.25323395,68548.0,68538.0,0.00028592]
[1771178560497,0.02429063,68548.0,68538.0,0.00028592]
[1771178560715,0.02429063,68548.0,68523.0,0.0937954]
[1771178560716,0.15600154,68544.0,68523.0,0.0937954]
[1771178560926,0.15600154,68543.0,68524.0,0.15266006]
[1771178561135,0.02429063,68542.0,68523.0,0.09392448]
[1771178561347,0.02429063,68542.0,68524.0,0.15266006]
[1771178561559,0.2806,68548.0,68527.0,0.15266006]
[1771178561740,0.2806,68548.0,68531.0,0.15266006]
[1771178561997,0.02429063,68551.0,68533.0,0.15266006]
[1771178562204,0.02429063,68551.0,68535.0,0.15266006]
[1771178562412,0.02429063,68551.0,68538.0,0.0002]
[1771178564132,0.0004,68553.0,68538.0,0.0002]
[1771178564318,0.0004,68553.0,68538.0,0.15624842]
[1771178564577,0.0004,68553.0,68538.0,0.15124842]
[1771178564805,0.0004,68553.0,68534.0,0.02129902]
[1771178564806,0.26637828,68555.0,68539.0,0.02129902]
[1771178565031,0.26637828,68555.0,68540.0,0.15604842]
[1771178566092,0.26637828,68555.0,68539.0,0.02129902]
[1771178566457,0.2892142,68555.0,68537.0,0.15604842]
[1771178568014,0.02283592,68554.0,68537.0,0.15604842]
[1771178568415,0.15666493,68554.0,68535.0,0.02129902]
[1771178568623,0.02283592,68549.0,68533.0,0.46056842]
[1771178568969,0.02283592,68549.0,68533.0,0.30452]
[1771178569141,0.2892142,68555.0,68536.0,0.17734744]
[1771178569357,0.2892142,68555.0,68538.0,0.15604842]
[1771178569545,0.2892142,68555.0,68535.0,0.0729544]
[1771178569546,0.2892142,68555.0,68540.0,0.15604842]
[1771178570743,0.57577725,68560.0,68540.0,0.15604842]
[1771178570959,0.57577725,68560.0,68544.0,0.15604842]
[1771178570960,0.0004,68560.0,68544.0,0.15604842]
[1771178571168,0.0004,68560.0,68540.0,0.64832694]
[1771178571169,0.0004,68560.0,68547.0,0.02129902]
[1771178571353,0.0004,68560.0,68548.0,0.15604842]
[1771178572006,0.0004,68560.0,68550.0,0.15604842]
[1771178572210,0.0004,68560.0,68531.0,0.0002]
[1771178572420,0.0004,68560.0,68542.0,0.16734744]
[1771178572631,0.0004,68560.0,68544.0,0.15604842]
[1771178572998,0.0004,68560.0,68542.0,0.07294695]
[1771178572999,0.0004,68560.0,68546.0,0.17734744]
[1771178573417,0.0004,68560.0,68547.0,0.02129902]
[1771178573563,0.0004,68560.0,68548.0,0.02129902]
[1771178573937,0.02283592,68573.0,68550.0,0.02129902]
[1771178574121,0.02283592,68573.0,68552.0,0.02129902]
[1771178574296,0.02283592,68573.0,68553.0,0.17734744]
[1771178575402,0.02283592,68573.0,68555.0,0.15604842]
[1771178575602,0.02283592,68573.0,68556.0,0.02129902]
[1771178575834,0.02283592,68573.0,68557.0,0.15604842]
[1771178576182,0.02283592,68573.0,68559.0,0.15604842]
[1771178576391,0.02283592,68573.0,68559.0,0.17734744]
[1771178578544,0.09344,68579.0,68559.0,0.15604842]
[1771178578754,0.00043006,68579.0,68559.0,0.15604842]
[1771178578957,0.00043006,68579.0,68563.0,0.17734744]
[1771178579162,0.00043006,68579.0,68565.0,0.15604842]
[1771178579363,0.00043006,68579.0,68567.0,0.17734744]
[1771178580152,0.00043006,68579.0,68570.0,0.15604842]
[1771178580473,0.0004,68593.0,68574.0,0.17742244]
[1771178580474,0.02276092,68592.0,68574.0,0.17742244]
[1771178580678,0.02276092,68592.0,68569.0,0.37747916]
[1771178580679,0.02288988,68592.0,68575.0,0.02137402]
[1771178580907,0.02288988,68592.0,68576.0,0.15604842]
[1771178581441,0.02288988,68592.0,68569.0,0.30456]
[1771178581442,0.00012896,68592.0,68578.0,0.15604842]
[1771178581648,0.02283592,68597.0,68569.0,0.30456]
[1771178581649,0.02283592,68604.0,68592.0,0.15604842]
[1771178581855,0.7548781,68610.0,68592.0,0.15604842]
[1771178582055,0.7548781,68610.0,68583.0,0.15604842]
[1771178582056,0.02283592,68601.0,68583.0,0.15604842]
[1771178582291,0.02283592,68601.0,68584.0,0.17742244]
[1771178582485,0.57537725,68600.0,68584.0,0.17742244]
[1771178582707,0.02283592,68600.0,68584.0,0.17742244]
[1771178583107,0.15666493,68606.0,68589.0,0.15604842]
[1771178583108,0.02283592,68606.0,68589.0,0.15604842]
[1771178583307,0.0004,68607.0,68591.0,0.17742244]
[1771178583861,0.0004,68599.0,68591.0,0.17742244]
[1771178584063,0.0004,68599.0,68587.0,0.07289991]
[1771178584446,0.0004,68599.0,68587.0,0.09427393]
[1771178584692,0.0004,68599.0,68587.0,0.25032235]
[1771178584927,0.0004,68599.0,68583.0,0.00043006]
[1771178584928,0.07289054,68596.0,68583.0,0.00043006]
[1771178585122,0.0004,68599.0,68557.0,0.43437064]
[1771178585123,0.09573179,68591.0,68566.0,0.06984]
[1771178585323,0.02283592,68587.0,68566.0,0.06984]
[1771178585453,0.00043024,68591.0,68566.0,0.06984]
[1771178585454,0.07290232,68585.0,68566.0,0.06984]
[1771178585664,0.02283592,68583.0,68563.0,0.15604842]
[1771178586278,0.02283592,68583.0,68566.0,0.15604842]
[1771178586483,0.02283592,68583.0,68567.0,0.15604842]
[1771178589873,0.02283592,68590.0,68568.0,0.02137402]
[1771178590080,0.02283592,68590.0,68569.0,0.15604842]
[1771178590485,0.17950085,68590.0,68569.0,0.15604842]
[1771178590715,0.02283592,68590.0,68571.0,0.15604842]
[1771178590943,0.02283592,68590.0,68571.0,0.17742244]
[1771178591151,0.02283592,68590.0,68573.0,0.15604842]
[1771178591784,0.00043024,68591.0,68578.0,0.17742244]
[1771178591987,0.00043024,68591.0,68567.0,0.0002]
[1771178591988,0.15666493,68589.0,68577.0,0.30432]
[1771178592193,0.02283592,68588.0,68577.0,0.30432]
[1771178592624,0.00043024,68591.0,68577.0,0.30432]
[1771178592830,0.00043024,68591.0,68580.0,0.15604842]
[1771178593093,0.00043024,68591.0,68582.0,0.15604842]
[1771178594566,0.0004,68599.0,68583.0,0.02137402]
[1771178594773,0.00046899,68599.0,68584.0,0.17379929]
[1771178595010,0.00046899,68599.0,68586.0,0.15242527]
[1771178595216,0.02290519,68598.0,68578.0,0.17379929]
[1771178595419,0.02290519,68598.0,68580.0,0.15242527]
[1771178595620,0.00046899,68599.0,68577.0,0.30432]
[1771178595621,0.02290519,68596.0,68577.0,0.30432]
[1771178595832,0.14648855,68595.0,68577.0,0.30432]
[1771178596041,0.00046899,68599.0,68560.0,0.0002]
[1771178596042,0.14648855,68587.0,68568.0,0.30444]
[1771178596299,0.00046899,68599.0,68568.0,0.30444]
[1771178596300,0.02290519,68598.0,68578.0,0.15242527]
[1771178596509,0.02290519,68598.0,68582.0,0.15242527]
[1771178596736,0.02290519,68598.0,68583.0,0.15242527]
[1771178596997,0.00046899,68599.0,68572.0,0.29166224]
[1771178596998,0.14648855,68597.0,68573.0,0.30448]
[1771178597215,0.00046899,68599.0,68563.0,0.00679485]
[1771178597216,0.14648855,68584.0,68563.0,0.00679485]
[1771178597481,0.14648855,68584.0,68560.0,0.0002]
[1771178597482,0.02290519,68581.0,68567.0,0.30472]
[1771178597683,0.02290519,68580.0,68567.0,0.30472]
[1771178598101,0.02290519,68580.0,68567.0,0.0002]
[1771178599455,0.02290519,68580.0,68568.0,0.0002]
[1771178603370,0.00832602,68580.0,68568.0,0.0002]
[1771178603817,0.00832602,68580.0,68568.0,0.3046]
[1771178604387,0.00832602,68580.0,68568.0,0.0002]
[1771178604388,0.14648855,68580.0,68568.0,0.0002]
[1771178604570,0.14648855,68580.0,68567.0,0.0002]
[1771178604571,0.07290743,68581.0,68567.0,0.0002]
[1771178604773,0.14648855,68579.0,68567.0,0.0002]
[1771178604990,0.02290519,68577.0,68567.0,0.0002]
[1771178605538,0.02290519,68575.0,68567.0,0.0002]
[1771178605782,0.02290519,68574.0,68567.0,0.0002]
[1771178606181,0.02290519,68574.0,68567.0,0.00063024]
[1771178606419,0.07291594,68573.0,68567.0,0.00063024]
[1771178606699,0.07291594,68573.0,68560.0,0.0002]
[1771178606700,0.14648855,68572.0,68560.0,0.0002]
[1771178606834,0.14648855,68572.0,68554.0,0.26724]
[1771178606835,0.14648855,68570.0,68554.0,0.0002]
[1771178607037,0.02290519,68567.0,68554.0,0.0002]
[1771178607241,0.02290519,68565.0,68554.0,0.0002]
[1771178607471,0.00043032,68565.0,68556.0,0.15242527]
[1771178607717,0.00043032,68565.0,68556.0,0.17379929]
[1771178607917,0.02333551,68565.0,68554.0,0.0002]
[1771178608093,0.00043032,68565.0,68554.0,0.0002]
[1771178608301,0.58309128,68600.0,68568.0,0.0002]
[1771178608302,0.14648855,68587.0,68568.0,0.0002]
[1771178608506,0.02290519,68584.0,68568.0,0.0002]
[1771178608716,0.02290519,68583.0,68568.0,0.0002]
[1771178610003,0.02290519,68582.0,68568.0,0.0002]
[1771178610225,0.02290519,68581.0,68568.0,0.0002]
[1771178611546,0.16939374,68581.0,68563.0,0.0069923]
[1771178611755,0.14648855,68578.0,68561.0,0.0002]
[1771178611960,0.57537725,68580.0,68561.0,0.0002]
[1771178611961,0.02290519,68575.0,68561.0,0.0002]
[1771178612174,0.02290519,68575.0,68554.0,0.15262527]
[1771178612175,0.02290519,68568.0,68554.0,0.0002]
[1771178612416,0.02290519,68564.0,68554.0,0.0002]
[1771178612614,0.14648855,68562.0,68553.0,0.0002]
[1771178612820,0.0934,68577.0,68553.0,0.0002]
[1771178612821,0.02290519,68560.0,68553.0,0.0002]
[1771178613518,0.02290519,68560.0,68553.0,0.00063032]
[1771178613724,0.02290519,68559.0,68553.0,0.00063032]
[1771178614092,0.07346012,68558.0,68553.0,0.00063032]
[1771178614299,0.02290519,68557.0,68545.0,0.0003954]
[1771178616533,0.07292314,68566.0,68554.0,0.0002]
[1771178616743,0.14648855,68564.0,68554.0,0.0002]
[1771178616957,0.14648855,68559.0,68545.0,0.0003954]
[1771178617169,0.14648855,68559.0,68530.0,0.57537725]
[1771178617170,0.02290519,68542.0,68532.0,0.0002]
[1771178617402,0.14648855,68540.0,68532.0,0.0002]
[1771178617613,0.57537725,68550.0,68532.0,0.0002]
[1771178617614,0.07295452,68536.0,68532.0,0.0002]
[1771178617824,0.14648855,68553.0,68525.0,0.15242527]
[1771178618051,0.02290519,68550.0,68527.0,0.15242527]
[1771178618223,0.14648855,68547.0,68527.0,0.15242527]
[1771178618429,0.14648855,68544.0,68527.0,0.00012908]
[1771178618645,0.02290519,68542.0,68527.0,0.00012908]
[1771178618855,0.14648855,68539.0,68527.0,0.00012908]
[1771178619068,0.02290519,68538.0,68527.0,0.00012908]
[1771178619288,0.14648855,68538.0,68527.0,0.00012908]
[1771178619481,0.02290519,68537.0,68527.0,0.00012908]
[1771178619963,0.57537725,68580.0,68524.0,0.0002472]
[1771178619964,0.14648855,68536.0,68524.0,0.0002472]
[1771178620193,0.14648855,68536.0,68502.0,0.02434151]
[1771178620194,0.14648855,68534.0,68502.0,0.02434151]
[1771178620399,0.02290519,68533.0,68502.0,0.02434151]
[1771178620570,0.02290519,68527.0,68505.0,0.15242527]
[1771178620791,0.02290519,68527.0,68507.0,0.15242527]
[1771178621040,0.14648855,68527.0,68507.0,0.15242527]
[1771178621252,0.02290519,68526.0,68507.0,0.15242527]
[1771178621442,0.14648855,68526.0,68507.0,0.15242527]
[1771178621616,0.07295706,68534.0,68507.0,0.15242527]
[1771178621857,0.02290519,68535.0,68511.0,0.17676678]
[1771178622004,0.07308411,68536.0,68511.0,0.17676678]
[1771178622005,0.02290519,68534.0,68511.0,0.17676678]
[1771178622201,0.02290519,68532.0,68511.0,0.17676678]
[1771178622442,0.07308411,68536.0,68512.0,0.30312]
[1771178622443,0.00012896,68536.0,68512.0,0.30312]
[1771178622695,0.00012896,68536.0,68517.0,0.02434151]
[1771178622882,0.00012896,68536.0,68518.0,0.15242527]
[1771178623086,0.00012896,68536.0,68527.0,0.0002]
[1771178624913,0.00012896,68536.0,68520.0,0.0002]
[1771178624914,0.02366543,68534.0,68520.0,0.0002]
[1771178625126,0.02366543,68529.0,68508.0,0.30308]